bitfinex-derivatives/quotes_ETHF0:USTF0_20250708
["timestamp","ask_amount","ask_price","bid_price","bid_amount"]
[1751963828515,29.14261841,2550.7,2550.6,3.85045092]
[1751963828716,29.14261841,2550.7,2550.6,0.7045]
[1751963830613,0.78419,2550.4,2550.3,0.78419]
[1751963830811,0.78419,2550.4,2550.3,2.47429]
[1751963830812,27.53519,2550.4,2550.3,2.47429]
[1751963833318,27.53519,2550.4,2550.3,4.63464092]
[1751963841625,26.751,2550.4,2550.3,4.63464092]
[1751963842124,27.53516,2550.4,2550.3,4.63464092]
[1751963842521,26.751,2550.4,2550.3,4.63464092]
[1751963842716,27.50516,2550.4,2550.3,4.63464092]
[1751963842918,0.78415,2550.5,2550.4,0.7841]
[1751963843224,0.78415,2550.5,2550.4,1.78036]
[1751963843225,26.721,2550.5,2550.4,1.78036]
[1751963843526,28.32223757,2550.5,2550.4,3.77096]
[1751963843724,26.721,2550.5,2550.4,3.77096]
[1751963844726,27.50513,2550.5,2550.4,3.77096]
[1751963845827,28.32237263,2550.5,2550.4,3.77096]
[1751963846028,26.721,2550.5,2550.4,3.77096]
[1751963846327,28.3236618,2550.5,2550.4,3.77096]
[1751963847027,5.54942697,2550.9,2550.7,2.16035092]
[1751963847231,3.2078,2550.9,2550.8,3.14623]
[1751963847530,31.53331711,2550.9,2550.8,3.14623]
[1751963848028,28.32551711,2550.9,2550.8,3.14623]
[1751963848225,29.10951711,2550.9,2550.8,3.14623]
[1751963848419,29.10951711,2550.9,2550.8,1.366]
[1751963848618,29.10951711,2550.9,2550.8,2.3622]
[1751963848821,2.38851711,2550.9,2550.8,3.14623]
[1751963849026,29.10951711,2550.9,2550.8,3.14623]
[1751963849630,29.10951711,2550.9,2550.8,2.3622]
[1751963850130,29.10951711,2550.9,2550.8,1.366]
[1751963850332,29.10951711,2550.9,2550.8,0.6949]
[1751963850529,0.7841,2550.6,2550.5,1.45131]
[1751963850729,27.5031,2550.6,2550.5,2.14621]
[1751963851130,29.1063547,2550.6,2550.5,1.3621]
[1751963851631,29.1063547,2550.6,2550.5,2.14623]
[1751963851831,1.6032547,2550.6,2550.5,2.14623]
[1751963852028,0.78408,2550.7,2550.6,0.7841]
[1751963852227,27.50908,2550.7,2550.6,2.1794]
[1751963852530,0.78401,2550.9,2550.8,0.784]
[1751963852731,29.12061854,2550.9,2550.8,0.784]
[1751963853036,26.731,2550.9,2550.8,0.784]
[1751963853226,26.731,2550.9,2550.8,1.4512]
[1751963853533,28.33445241,2550.9,2550.8,1.4512]
[1751963853926,26.731,2550.9,2550.8,1.4512]
[1751963854126,27.515,2550.9,2550.8,3.1423]
[1751963856437,26.731,2550.9,2550.8,3.1423]
[1751963856736,0.78399,2551.0,2550.9,0.78397]
[1751963856931,29.11699848,2551.0,2550.9,1.47887]
[1751963857237,29.11699848,2551.0,2550.9,4.63542092]
[1751963858938,33.50078848,2551.0,2550.6,0.9962]
[1751963859139,0.78413,2550.6,2550.5,0.78412]
[1751963859333,27.51113,2550.6,2550.5,2.47522]
[1751963859632,13.44977,2551.0,2550.8,2.16035092]
[1751963859837,29.12156648,2550.9,2550.8,0.6949]
[1751963864241,29.12156648,2550.9,2550.8,1.47893]
[1751963864539,29.12156648,2550.9,2550.8,0.6949]
[1751963867139,29.12156648,2550.9,2550.8,1.47894]
[1751963867337,29.12156648,2550.9,2550.8,2.47514]
[1751963868338,29.12156648,2550.9,2550.8,1.6911]
[1751963868738,29.12156648,2550.9,2550.8,2.47514]
[1751963868940,29.12156648,2550.9,2550.8,4.63549092]
[1751963869939,2.38656648,2550.9,2550.8,4.63549092]
[1751963870139,29.11356648,2550.9,2550.8,4.63549092]
[1751963872335,29.11356648,2550.9,2550.8,2.47514]
[1751963879544,29.11356648,2550.9,2550.8,4.63549092]
[1751963882945,2.38656648,2550.9,2550.8,4.63549092]
[1751963883145,28.31956648,2550.9,2550.8,4.63549092]
[1751963883346,28.31956648,2550.9,2550.8,2.47514]
[1751963883549,28.31956648,2550.9,2550.8,3.77374]
[1751963884149,29.10356648,2550.9,2550.8,3.77374]
[1751963885952,29.10356648,2550.9,2550.8,5.93409092]
[1751963890453,29.10356648,2550.9,2550.8,5.93409092]
[1751963890855,28.31956648,2550.9,2550.8,5.93409092]
[1751963891054,29.10356648,2550.9,2550.8,5.93409092]
[1751963891354,28.31956648,2550.9,2550.8,5.93409092]
[1751963891854,29.10356648,2550.9,2550.8,5.93409092]
[1751963896958,29.10356648,2550.9,2550.8,4.63549092]
[1751963897858,29.10356648,2550.9,2550.8,1.47894]
[1751963898559,29.10356648,2550.9,2550.8,0.6949]
[1751963899162,29.10356648,2550.9,2550.8,1.47894]
[1751963899460,29.10356648,2550.9,2550.8,0.6949]
[1751963899959,2.38656648,2550.9,2550.8,2.85525092]
[1751963900156,29.10156648,2550.9,2550.8,3.81665092]
[1751963900861,29.10156648,2550.9,2550.8,4.60069092]
[1751963901064,28.31756648,2550.9,2550.8,4.60069092]
[1751963901258,29.10156648,2550.9,2550.8,4.60069092]
[1751963901659,28.31756648,2550.9,2550.8,4.60069092]
[1751963901860,29.10156648,2550.9,2550.8,4.60069092]
[1751963902063,28.31756648,2550.9,2550.8,4.60069092]
[1751963902258,28.31756648,2550.9,2550.8,5.91299092]
[1751963903361,1.60256648,2550.9,2550.8,3.75264]
[1751963903565,1.60256648,2550.9,2550.8,8.75264]
[1751963903866,26.714,2551.0,2550.9,0.784]
[1751963904059,28.32267676,2551.0,2550.9,2.0963]
[1751963904261,28.32267676,2551.0,2550.9,2.8013]
[1751963904566,28.32267676,2551.0,2550.9,3.8575]
[1751963906361,26.714,2551.0,2550.9,3.8575]
[1751963906764,3.2078,2551.4,2551.3,0.78388]
[1751963906959,32.31228815,2551.4,2551.3,2.54508]
[1751963907866,32.31228815,2551.4,2551.3,3.23238]
[1751963908067,32.31228815,2551.4,2551.3,2.4485]
[1751963908463,32.31228815,2551.4,2551.3,3.23238]
[1751963908664,32.31228815,2551.4,2551.3,2.4485]
[1751963909267,0.78394,2551.2,2551.1,0.78393]
[1751963909467,27.49594,2551.2,2551.1,1.48893]
[1751963909666,27.49594,2551.2,2551.1,2.54513]
[1751963910063,29.10222336,2551.2,2551.1,2.54513]
[1751963911072,29.10222336,2551.2,2551.1,1.7612]
[1751963911771,27.49594,2551.2,2551.1,1.7612]
[1751963911970,27.49594,2551.2,2551.1,2.54514]
[1751963912171,29.10099263,2551.2,2551.1,2.54514]
[1751963913372,29.10082991,2551.2,2551.1,2.54514]
[1751963913871,29.10082919,2551.2,2551.1,2.54514]
[1751963916073,29.10082919,2551.2,2551.1,1.7612]
[1751963916274,27.49594,2551.2,2551.1,1.7612]
[1751963917972,27.49594,2551.2,2551.1,0.705]
[1751963919170,29.1000733,2551.2,2551.1,0.705]
[1751963919373,0.78394,2551.1,2551.0,1.7173]
[1751963919674,3.99174,2551.1,2551.0,2.4223]
[1751963920273,3.99174,2551.1,2551.0,1.3661]
[1751963920773,3.99174,2551.1,2551.0,2.15007]
[1751963921771,3.99174,2551.1,2551.0,1.3661]
[1751963922674,0.78394,2551.1,2551.0,1.3661]
[1751963922977,3.99174,2551.1,2551.0,1.3661]
[1751963923977,3.99174,2551.1,2551.0,2.15007]
[1751963924380,3.99174,2551.1,2551.0,1.3661]
[1751963924575,3.99174,2551.1,2551.0,2.15007]
[1751963925078,3.99174,2551.1,2551.0,3.20627]
[1751963925380,3.2078,2551.4,2551.3,2.16035092]
[1751963925580,13.87170957,2551.4,2551.3,4.70543092]
[1751963925782,40.57970957,2551.4,2551.3,4.70543092]
[1751963925976,13.87170957,2551.4,2551.3,4.70543092]
[1751963926283,40.57970957,2551.4,2551.3,4.70543092]
[1751963926678,13.87170957,2551.4,2551.3,4.70543092]
[1751963926978,2.38890957,2551.4,2551.3,4.70543092]
[1751963927178,29.09590957,2551.4,2551.3,4.70543092]
[1751963927480,32.30370957,2551.4,2551.3,4.70543092]
[1751963928079,32.30370957,2551.4,2551.3,0.705]
[1751963929584,30.69865,2551.4,2551.3,0.705]
[1751963929786,32.31009813,2551.4,2551.3,0.705]
[1751963930985,32.31009813,2551.4,2551.1,1.0562]
[1751963930986,0.78391,2551.2,2551.1,1.0562]
[1751963931181,27.48991,2551.2,2551.1,0.6641]
[1751963931381,0.78394,2551.1,2551.0,0.6611]
[1751963931575,5.60318813,2551.1,2551.0,1.3252]
[1751963932085,5.60309057,2551.1,2551.0,1.3252]
[1751963932583,5.60309057,2551.1,2551.0,2.10917]
[1751963933186,5.60309057,2551.1,2551.0,1.3252]
[1751963934685,5.60309057,2551.1,2551.0,3.10267]
[1751963934884,5.60309057,2551.1,2551.0,2.3187]
[1751963935583,5.60309057,2551.1,2551.0,0.6641]
[1751963937088,0.784,2550.9,2550.8,1.6357]
[1751963937280,27.49,2550.9,2550.8,2.2998]
[1751963937483,29.10135057,2550.9,2550.8,2.2998]
[1751963938386,29.10135057,2550.9,2550.8,1.3063]
[1751963941491,27.49,2550.9,2550.8,1.3063]
[1751963942190,0.7841,2550.6,2550.5,1.278]
[1751963942390,27.4901,2550.6,2550.5,3.6421]
[1751963942792,27.4901,2550.6,2550.5,4.42623]
[1751963943495,27.4901,2550.6,2550.5,3.6421]
[1751963943694,27.4901,2550.6,2550.5,1.3706]
[1751963944194,27.4901,2550.6,2550.5,2.3641]
[1751963944588,44.71859,2551.9,2550.6,0.7841]
[1751963944793,0.784,2550.9,2550.8,2.16035092]
[1751963944995,27.49,2550.9,2550.8,1.3631]
[1751963945596,27.49,2550.9,2550.8,2.14714]
[1751963945999,27.49,2550.9,2550.8,1.3631]
[1751963947000,35.765,2550.9,2550.8,1.3631]
[1751963947401,35.765,2550.9,2550.8,2.14714]
[1751963948204,35.765,2550.9,2550.8,1.3631]
[1751963948495,35.765,2550.9,2550.8,2.14714]
[1751963950401,38.9728,2550.9,2550.8,2.14714]
[1751963951202,35.765,2550.9,2550.8,2.14714]
[1751963951499,38.9728,2550.9,2550.8,2.14714]
[1751963951800,38.9728,2550.9,2550.8,1.3631]
[1751963952702,38.9728,2550.9,2550.8,2.14714]
[1751963953601,35.765,2550.9,2550.8,2.14714]
[1751963953793,38.9728,2550.9,2550.8,2.14714]
[1751963954300,38.9728,2550.9,2550.8,1.3631]
[1751963955403,35.765,2550.9,2550.8,1.3631]
[1751963955600,38.9728,2550.9,2550.8,1.3631]
[1751963958003,38.9728,2550.9,2550.8,2.14714]
[1751963959305,38.9728,2550.9,2550.8,3.14064]
[1751963960106,38.9728,2550.9,2550.8,2.3566]
[1751963960705,38.9728,2550.9,2550.8,3.14064]
[1751963961505,38.9728,2550.9,2550.8,2.3566]
[1751963961705,38.9728,2550.9,2550.8,3.14064]
[1751963963006,38.9728,2550.9,2550.8,1.3631]
[1751963963208,0.78413,2550.5,2550.4,2.16035092]
[1751963963405,27.49013,2550.5,2550.4,1.6487]
[1751963963907,27.49013,2550.5,2550.4,0.6769]
[1751963964108,27.49013,2550.5,2550.4,1.46106]
[1751963964304,27.49013,2550.5,2550.4,2.43286]
[1751963964813,0.78422,2550.3,2550.1,2.2914]
[1751963965011,26.706,2550.2,2550.1,2.10385]
[1751963965212,26.706,2550.2,2550.1,2.78075]
[1751963965509,26.706,2550.2,2550.1,3.75255]
[1751963965713,27.49022,2550.2,2550.1,3.75255]
[1751963966913,27.49022,2550.2,2550.1,4.40175]
[1751963967614,27.49022,2550.2,2550.1,1.3261]
[1751963967813,27.49022,2550.2,2550.1,3.08215]
[1751963970214,27.49022,2550.2,2550.1,2.2979]
[1751963971316,27.49022,2550.2,2550.1,3.08215]
[1751963971715,27.49022,2550.2,2550.1,2.2979]
[1751963971914,27.49022,2550.2,2550.1,3.08215]
[1751963972317,27.49022,2550.2,2550.1,2.2979]
[1751963972616,27.49022,2550.2,2550.1,3.08215]
[1751963972812,27.49022,2550.2,2550.1,2.2979]
[1751963973314,27.49022,2550.2,2550.1,3.08215]
[1751963976718,0.78422,2550.2,2550.1,3.08215]
[1751963977022,9.06022,2550.3,2550.2,0.78419]
[1751963977222,35.76922,2550.3,2550.2,2.43289]
[1751963977522,0.78422,2550.3,2550.2,2.43289]
[1751963977720,27.49322,2550.3,2550.2,2.43289]
[1751963978517,9.05916,2550.4,2550.3,0.78419]
[1751963978821,3.2078,2550.5,2550.4,2.94451092]
[1751963979018,30.70093,2550.5,2550.4,5.67771092]
[1751963979220,30.70093,2550.5,2550.4,0.6717]
[1751963980526,30.70093,2550.5,2550.4,1.3486]
[1751963981421,29.9168,2550.5,2550.2,0.9718]
[1751963981723,0.78419,2550.3,2550.2,2.43291]
[1751963981918,27.49219,2550.3,2550.2,2.43291]
[1751963982825,26.708,2550.3,2550.2,2.43291]
[1751963983023,26.708,2550.3,2550.1,0.6741]
[1751963983224,0.7843,2550.0,2549.7,1.96087]
[1751963983520,0.78427,2550.1,2550.0,0.78425]
[1751963983726,0.78427,2550.1,2550.0,2.94460092]
[1751963984124,0.78427,2550.1,2550.0,3.62150092]
[1751963984425,3.99205,2550.2,2550.1,0.78425]
[1751963984625,3.99205,2550.2,2550.1,4.43675]
[1751963986229,3.2078,2550.2,2550.1,4.43675]
[1751963988230,3.2078,2550.2,2550.1,6.59710092]
[1751963988830,0.78421,2550.3,2550.2,0.78422]
[1751963989033,0.78421,2550.3,2550.2,2.81232]
[1751963989231,0.78421,2550.3,2550.2,3.78412]
[1751963989731,3.2078,2550.4,2550.3,0.78419]
[1751963989929,3.2078,2550.4,2550.3,3.78409]
[1751963991037,3.2078,2550.4,2550.3,5.94444092]
[1751963992137,3.99196,2550.4,2550.3,5.94444092]
[1751963992633,3.2078,2550.4,2550.3,5.94444092]
[1751963992829,0.78412,2550.6,2550.5,2.94448092]
[1751963993133,0.78412,2550.6,2550.5,4.60428092]
[1751963993533,0.78412,2550.6,2550.5,5.97538092]
[1751963997834,3.2078,2550.8,2550.5,5.19125092]
[1751963998137,3.2078,2550.8,2550.7,2.94442092]
[1751963998438,3.2078,2550.8,2550.7,4.60422092]
[1751963998640,3.2078,2550.8,2550.7,5.99132092]
[1751963999434,0.78399,2551.0,2550.9,2.94435092]
[1751963999635,3.2078,2551.1,2551.0,2.94432092]
[1751963999834,3.2078,2551.1,2551.0,3.62412092]
[1751964000039,3.2078,2551.1,2551.0,4.60412092]
[1751964000544,4.81625639,2551.1,2551.0,4.60412092]
[1751964000841,1.60845639,2551.1,2551.0,4.60412092]
[1751964001041,0.7839,2551.3,2551.2,0.78391]
[1751964001340,2.39233861,2551.3,2551.2,2.44371]
[1751964001836,1.60843861,2551.3,2551.2,2.44371]
[1751964003337,2.39231861,2551.3,2551.2,2.44371]
[1751964006832,2.38798634,2551.3,2551.2,2.44371]
[1751964007033,0.78388,2551.3,2551.2,2.44371]
[1751964014847,0.78388,2551.3,2551.2,4.60406092]
[1751964016148,2.38595058,2551.3,2551.2,4.60406092]
[1751964021149,3.2078,2551.4,2551.3,0.78388]
[1751964021354,3.99165,2551.4,2551.3,2.76488]
[1751964021548,3.2078,2551.4,2551.3,3.74488]
[1751964023353,0.78379,2551.6,2551.5,0.78382]
[1751964023548,0.78379,2551.6,2551.5,4.62117092]
[1751964023748,2.38150281,2551.6,2551.5,4.62117092]
[1751964024054,2.38150281,2551.6,2551.5,5.98017092]
[1751964025157,1.59771281,2551.6,2551.5,3.81982]
[1751964026956,0.78374,2551.8,2551.7,0.78376]
[1751964027157,2.38088257,2551.8,2551.7,1.48026]
[1751964027363,2.38088257,2551.8,2551.7,2.46076]
[1751964028059,2.38088257,2551.8,2551.7,1.384]
[1751964028260,2.38088257,2551.8,2551.7,0.6965]
[1751964030960,0.78379,2551.6,2551.5,1.7643]
[1751964031163,2.38093257,2551.6,2551.5,2.4608]
[1751964031862,5.58873257,2551.6,2551.5,2.4608]
[1751964032365,3.99159,2551.6,2551.5,2.4608]
[1751964033262,3.99159,2551.6,2551.5,4.62115092]
[1751964033460,3.99159,2551.6,2551.5,5.95125092]
[1751964036570,3.99159,2551.6,2551.5,3.7909]
[1751964036869,3.99159,2551.6,2551.5,2.4608]
[1751964038074,3.2078,2551.6,2551.5,2.4608]
[1751964038367,3.2078,2551.6,2551.5,3.8119]
[1751964038762,3.99159,2551.6,2551.5,3.8119]
[1751964040469,3.99159,2551.6,2551.5,2.4608]
[1751964042973,0.78379,2551.6,2551.5,2.4608]
[1751964044275,0.78379,2551.6,2551.5,2.46082]
[1751964044470,0.78382,2551.5,2551.4,1.47133]
[1751964044675,0.78382,2551.5,2551.4,1.48033]
[1751964045173,0.78382,2551.5,2551.2,6.82899]
[1751964045174,0.78388,2551.3,2551.2,1.4648]
[1751964045373,0.78388,2551.3,2551.2,2.1613]
[1751964046975,0.78388,2551.3,2551.2,1.4804]
[1751964047175,2.37884461,2551.3,2551.2,1.4804]
[1751964048074,2.37884461,2551.3,2551.2,0.6965]
[1751964048675,0.78391,2551.2,2551.1,0.78393]
[1751964048870,0.78391,2551.2,2551.1,1.48043]
[1751964050373,0.78394,2551.1,2551.0,1.6738]
[1751964050576,0.78394,2551.1,2551.0,2.45777]
[1751964050775,0.78394,2551.1,2551.0,3.10307]
[1751964051878,0.78393,2551.2,2551.1,0.78391]
[1751964052084,0.78393,2551.2,2551.1,1.42921]
[1751964052380,0.78393,2551.2,2551.1,2.40971]
[1751964059288,2.38008301,2551.2,2551.1,2.40971]
[1751964061787,2.38008301,2551.2,2551.1,1.42921]
[1751964062786,2.38008301,2551.2,2551.1,2.39031]
[1751964067992,2.38008301,2551.2,2551.1,1.42921]
[1751964068892,2.38008301,2551.2,2551.1,2.39031]
[1751964070795,2.38008301,2551.2,2551.1,4.12162531]
[1751964070995,2.38008301,2551.2,2551.1,3.16052531]
[1751964071796,2.38008301,2551.2,2551.1,4.12162531]
[1751964074402,5.58788301,2551.2,2551.1,4.12162531]
[1751964074804,5.58788301,2551.2,2551.1,2.39031]
[1751964079805,0.78394,2551.1,2551.0,0.6933]
[1751964080005,0.784,2550.9,2550.8,1.6684]
[1751964080304,2.38015301,2550.9,2550.8,2.3137]
[1751964080505,2.38015301,2550.9,2550.8,3.09772]
[1751964081004,1.59615301,2550.9,2550.8,3.09772]
[1751964081406,2.37722827,2550.9,2550.8,3.09772]
[1751964084103,6.76107827,2550.9,2550.4,1.76563]
[1751964084305,6.76107827,2550.9,2550.6,0.6703]
[1751964084306,0.78407,2550.7,2550.6,0.6703]
[1751964084507,2.37729827,2550.7,2550.6,0.6703]
[1751964084707,0.7841,2550.6,2550.5,0.6489]
[1751964085005,2.37732827,2550.6,2550.5,1.3192]
[1751964085207,2.37732827,2550.6,2550.5,2.10333]
[1751964085416,2.37732827,2550.6,2550.5,3.08483]
[1751964089809,1.59322827,2550.6,2550.5,3.08483]
[1751964090014,26.684,2550.8,2550.7,0.78407]
[1751964090218,26.684,2550.8,2550.7,1.45437]
[1751964090512,29.8918,2551.0,2550.9,0.784]
[1751964090712,29.8918,2551.0,2550.9,2.4358]
[1751964090913,31.48339867,2551.0,2550.9,2.4358]
[1751964091106,31.48339867,2551.0,2550.9,3.8432]
[1751964091715,32.26736867,2551.0,2550.9,3.8432]
[1751964092217,31.48339867,2551.0,2550.9,3.8432]
[1751964092414,26.684,2551.0,2550.9,6.00731141]
[1751964094120,0.78393,2551.2,2550.9,5.22331141]
[1751964094313,29.05887909,2551.1,2551.0,3.12257]
[1751964094515,1.59193909,2551.1,2551.0,3.79287]
[1751964094713,29.05887909,2551.1,2551.0,3.79287]
[1751964094916,27.46694,2551.1,2551.0,3.79287]
[1751964095117,1.5909359,2551.1,2551.0,5.95698141]
[1751964095319,2.3748759,2551.1,2551.0,5.95698141]
[1751964095821,0.78394,2551.1,2551.0,5.95698141]
[1751964096017,2.37490415,2551.1,2551.0,5.95698141]
[1751964097518,0.78394,2551.1,2551.0,5.95698141]
[1751964099220,27.46693,2551.2,2551.1,0.78394]
[1751964099423,29.05793938,2551.2,2551.1,0.78394]
[1751964099622,29.05793938,2551.2,2551.1,2.13234]
[1751964099921,29.05793938,2551.2,2551.1,3.11384]
[1751964100222,2.37493938,2551.2,2551.1,3.11384]
[1751964100422,29.05493938,2551.2,2551.1,3.11384]
[1751964100822,27.46393,2551.2,2551.1,3.11384]
[1751964101022,29.0539975,2551.2,2551.1,3.11384]
[1751964104922,29.0539975,2551.2,2551.1,2.3299]
[1751964105130,0.784,2551.0,2550.9,0.78398]
[1751964105329,0.78397,2551.1,2551.0,0.78394]
[1751964105632,0.78397,2551.1,2551.0,2.43574]
[1751964105924,26.68,2551.2,2551.1,0.78394]
[1751964106126,28.26961176,2551.2,2551.1,1.45424]
[1751964106327,28.26961176,2551.2,2551.1,2.43574]
[1751964107427,29.05355176,2551.2,2551.1,2.43574]
[1751964108429,29.05355176,2551.2,2551.1,0.78394]
[1751964108630,29.05355176,2551.2,2551.1,2.43574]
[1751964112032,29.05355176,2551.2,2551.1,2.47084]
[1751964114442,0.78404,2550.8,2550.7,0.78405]
[1751964114643,3.99183,2550.9,2550.8,0.78399]
[1751964114839,26.676,2550.9,2550.8,5.30440141]
[1751964115644,28.26583473,2550.9,2550.8,5.30440141]
[1751964115843,29.04983473,2550.9,2550.8,4.52041141]
[1751964116044,29.04983473,2550.9,2550.8,5.30445141]
[1751964118844,29.04983473,2550.9,2550.8,4.87189708]
[1751964119946,29.05208262,2550.9,2550.8,4.87189708]
[1751964123852,29.05208262,2550.9,2550.8,4.08785708]
[1751964124255,0.78406,2550.7,2550.6,2.74215708]
[1751964124454,0.78406,2550.7,2550.6,3.44755708]
[1751964125553,0.78406,2550.7,2550.6,4.23164708]
[1751964126554,27.45906,2550.7,2550.6,4.23164708]
[1751964126855,27.45906,2550.7,2550.6,3.44755708]
[1751964128456,27.45906,2550.7,2550.6,4.23164708]
[1751964128856,27.45906,2550.7,2550.6,4.66482238]
[1751964129757,27.45906,2550.7,2550.6,3.88073238]
[1751964130658,27.45906,2550.7,2550.6,1.716]
[1751964131156,27.45906,2550.7,2550.2,6.6540494]
[1751964131157,0.78422,2550.3,2550.2,1.79479]
[1751964131460,27.45822,2550.3,2550.2,2.50019]
[1751964131960,29.05200069,2550.3,2550.2,2.50019]
[1751964132260,27.45822,2550.3,2550.2,2.50019]
[1751964136463,0.78422,2550.3,2550.2,2.50019]
[1751964136762,27.45922,2550.3,2550.2,2.50019]
[1751964141466,0.78422,2550.3,2550.2,2.50019]
[1751964141665,27.45922,2550.3,2550.2,2.50019]
[1751964142666,27.45922,2550.3,2550.2,1.716]
[1751964142862,27.45922,2550.3,2550.2,2.50022]
[1751964143067,27.45922,2550.3,2550.2,1.716]
[1751964143366,27.45922,2550.3,2550.2,0.7054]
[1751964143864,27.45922,2550.3,2550.2,1.48962]
[1751964144165,27.45922,2550.3,2550.2,2.51342]
[1751964145370,27.45922,2550.3,2550.2,0.7054]
[1751964146171,27.45922,2550.3,2550.2,1.48962]
[1751964147770,27.45922,2550.3,2550.2,0.7054]
[1751964148370,27.45922,2550.3,2550.2,1.48962]
[1751964148670,27.45922,2550.3,2550.2,0.7054]
[1751964149266,27.45922,2550.3,2550.2,1.7292]
[1751964149470,27.45922,2550.3,2550.2,2.51342]
[1751964154682,27.45922,2550.3,2550.2,0.7054]
[1751964155072,27.45922,2550.3,2550.2,1.48962]
[1751964155281,27.45922,2550.3,2550.2,2.51342]
[1751964156082,27.45922,2550.3,2550.2,1.7292]
[1751964156583,27.45922,2550.3,2550.2,2.51342]
[1751964157183,29.04670424,2550.3,2550.2,2.51342]
[1751964158085,29.04670424,2550.3,2550.2,1.7292]
[1751964158285,29.04670424,2550.3,2550.2,2.51342]
[1751964163189,28.26248424,2550.3,2550.2,2.51342]
[1751964163487,29.04666424,2550.3,2550.2,2.51342]
[1751964163687,28.26248424,2550.3,2550.2,2.51342]
[1751964164089,29.04667424,2550.3,2550.2,2.51342]
[1751964164590,29.04667424,2550.3,2550.2,1.48962]
[1751964166391,29.04667424,2550.3,2550.2,0.7054]
[1751964167391,29.04667424,2550.3,2550.2,1.48962]
[1751964167593,29.04667424,2550.3,2550.2,0.7054]
[1751964168994,29.04667424,2550.3,2550.2,1.48962]
[1751964169193,29.04667424,2550.3,2550.2,2.51342]
[1751964169388,29.04667424,2550.3,2550.2,1.7292]
[1751964169693,29.04667424,2550.3,2550.2,2.51342]
[1751964170694,32.25447424,2550.3,2550.2,2.51342]
[1751964171491,32.25447424,2550.3,2550.2,1.48962]
[1751964171992,29.04667424,2550.3,2550.2,1.48962]
[1751964172187,32.25447424,2550.3,2550.2,1.48962]
[1751964173691,32.25447424,2550.3,2550.2,0.7054]
[1751964175197,32.25447424,2550.3,2550.2,1.48962]
[1751964175999,32.25447424,2550.3,2550.2,2.51762]
[1751964180113,32.25447424,2550.3,2550.2,0.7054]
[1751964182207,1.96063,2550.1,2549.7,4.6935594]
[1751964182403,3.99214,2549.8,2549.7,0.6615]
[1751964182608,40.51062424,2549.8,2549.7,1.3024]
[1751964183304,40.51062424,2549.8,2549.7,2.3304]
[1751964183503,41.68717424,2549.8,2549.2,2.5170303]
[1751964183703,0.7844,2549.6,2549.5,0.6615]
[1751964183909,0.78446,2549.4,2549.3,1.028]
[1751964184104,27.45146,2549.4,2549.3,1.6895]
[1751964186107,27.45146,2549.4,2549.3,2.474]
[1751964186309,27.45146,2549.4,2549.3,1.6895]
[1751964188308,0.78446,2549.4,2549.3,5.5329103]
[1751964188512,3.2078,2549.8,2549.7,1.7325103]
[1751964188809,40.50925024,2549.8,2549.7,1.6895]
[1751964189313,5.57325024,2549.8,2549.7,2.3275]
[1751964189512,40.50925024,2549.8,2549.7,2.3275]
[1751964191813,40.51025024,2549.8,2549.7,2.3275]
[1751964192617,40.51025024,2549.8,2549.7,3.11187]
[1751964192817,5.57325024,2549.8,2549.7,3.11187]
[1751964193116,40.50725024,2549.8,2549.7,3.11187]
[1751964193718,40.50725024,2549.8,2549.7,2.3275]
[1751964194217,40.50825024,2549.8,2549.7,2.3275]
[1751964194419,40.50825024,2549.8,2549.7,3.11187]
[1751964194620,40.50825024,2549.8,2549.7,2.3275]
[1751964194917,40.50825024,2549.8,2549.7,3.11187]
[1751964195415,5.57325024,2549.8,2549.7,3.11187]
[1751964195618,61.97531,2550.0,2549.7,4.49418219]
[1751964195921,34.935,2549.9,2549.8,1.81234]
[1751964196124,35.71933,2549.9,2549.8,3.86064]
[1751964198224,61.191,2550.0,2549.9,0.78431]
[1751964198420,87.862,2550.0,2549.9,5.95869219]
[1751964199523,87.862,2550.0,2549.9,3.79201]
[1751964199723,88.64628,2550.0,2549.9,3.79201]
[1751964199925,87.862,2550.0,2549.9,3.79201]
[1751964200724,88.64628,2550.0,2549.9,3.79201]
[1751964201125,87.862,2550.0,2549.9,3.79201]
[1751964202723,87.86,2550.0,2549.9,3.79201]
[1751964203327,88.64428,2550.0,2549.9,3.79201]
[1751964205725,88.64428,2550.0,2549.9,5.95869219]
[1751964207929,87.86,2550.0,2549.9,5.95869219]
[1751964208429,88.64428,2550.0,2549.9,5.95869219]
[1751964209526,88.64428,2550.0,2549.9,3.79201]
[1751964209726,27.45328,2550.0,2549.9,3.79201]
[1751964211132,27.45328,2550.0,2549.9,2.47381]
[1751964212628,26.669,2550.0,2549.9,2.47381]
[1751964212829,26.669,2550.0,2549.9,4.20661412]
[1751964213028,27.45328,2550.0,2549.9,4.20661412]
[1751964214330,3.2078,2550.1,2549.9,4.20661412]
[1751964214535,0.7841,2550.6,2550.5,1.73280412]
[1751964214736,29.03921668,2550.6,2550.5,0.78413]
[1751964216027,29.03921668,2550.6,2550.5,1.45733]
[1751964216838,28.25511668,2550.6,2550.5,2.44803]
[1751964217136,29.03921668,2550.6,2550.5,2.44803]
[1751964217636,27.4491,2550.6,2550.5,2.44803]
[1751964218232,26.665,2550.6,2550.5,2.44803]
[1751964218432,27.4491,2550.6,2550.5,2.44803]
[1751964218936,27.4471,2550.6,2550.5,2.44803]
[1751964219435,65.18788,2550.7,2550.6,0.7841]
[1751964219625,93.44030551,2550.7,2550.6,1.4573]
[1751964220438,93.44030551,2550.7,2550.6,2.448]
[1751964221940,93.43929551,2550.7,2550.6,0.7841]
[1751964222233,94.83519551,2550.7,2550.6,0.7841]
[1751964223132,0.78413,2550.6,2550.5,0.7841]
[1751964223334,2.37355551,2550.6,2550.5,0.7841]
[1751964223529,2.37355551,2550.6,2550.5,1.4573]
[1751964225140,2.37355551,2550.6,2550.5,2.448]